Cogmind - Beta 13 @@@ ROGUE MODE // 2024.06.25 @ 17:49:22 Player: N.W.L Result: Destroyed by H-61 Shepherd with Heavy Assault Cannon Performance ------------- Evolutions (2) 1000 Regions Visited (5) 1000 Robots Destroyed (3) 15 Value Destroyed (71) 71 Prototype IDs (25) 500 Alien Tech Used (0) 0 Bonus (570) 570 TOTAL SCORE: 3156 Bonus ------- Pacifist 270 Aligned with FarCom 300 Cogmind --------- Core Integrity 0/550 Matter 290/300 Energy 66/100 System Corruption 9% Temperature Cool (0) Movement Core (50) Location -8/Materials Parts ------- > --- POWER (1) -------- (None) > --- PROPULSION (4) --- (None) > --- UTILITY (4) ------ Weight Redist. System Armor Integrity Analyzer > --- WEAPON (2) ------- (None) > --- INVENTORY (5) ---- Small Storage Unit Hardened Medium Armor Plating Trap Reconfigurator Blade Trap Peak State ------------ > --- POWER ------------ Light Ion Engine > --- PROPULSION ------- Armored Treads > --- UTILITY ---------- Weight Redist. System Hardlight Generator Hacking Suite > --- WEAPON ----------- Grenade Launcher > --- INVENTORY -------- Small Storage Unit Light Armor Plating Hardened Medium Armor Plating Trap Reconfigurator Blade Trap [Rating: 14] Favorites ----------- Power Light Ion Engine Engine Light Ion Engine Propulsion Armored Treads Treads Armored Treads Flight Unit Flight Unit Utility Weight Redist. System Device Weight Redist. System Processor Armor Integrity Analyzer Hackware Hacking Suite Protection Light Armor Plating Weapon Grenade Launcher Launcher Grenade Launcher Slashing Weapon Scythe Build | -11 -10 -10 -10 -9 -8 ------- Run | Yrd Mat Min Exi Min Mat Slots Evolved 4 | . . . . . 4 Power . | . . . . . . Propulsion 2 | . . . . . 2 Utility 2 | . . . . . 2 Weapon . | . . . . . . Parts Attached 13 | . . 2 1 . 10 Power 1 | . . . . . 1 Engine 1 | . . . . . 1 Core . | . . . . . . Reactor . | . . . . . . Propulsion 3 | . . . . . 3 Treads 1 | . . . . . 1 Leg . | . . . . . . Wheel . | . . . . . . Hover . | . . . . . . Flight 2 | . . . . . 2 Utility 7 | . . 1 1 . 5 Device 3 | . . 1 1 . 1 Storage . | . . . . . . Processor 1 | . . . . . 1 Hackware 1 | . . . . . 1 Protection 2 | . . . . . 2 Artifact . | . . . . . . Weapon 2 | . . 1 . . 1 Energy Gun . | . . . . . . Energy Cannon . | . . . . . . Ballistic Gun . | . . . . . . Ballistic Cannon . | . . . . . . Launcher 1 | . . 1 . . . Special Weapon . | . . . . . . Impact Weapon . | . . . . . . Slashing Weapon 1 | . . . . . 1 Piercing Weapon . | . . . . . . Special Melee Weapon . | . . . . . . Unidentified Prototypes . | . . . . . . Parts Lost 8 | . . . . . 8 Power 1 | . . . . . 1 Propulsion 2 | . . . . . 2 Utility 3 | . . . . . 3 Weapon 2 | . . . . . 2 Highest Loss Streak 4 | . . . . . 4 To Critical Strikes . | . . . . . . Average Slot Usage (%) 24 | . . 22 28 28 31 Treads 1 | . . . . . 4 Flight 1 | . . . . . 4 Device 10 | . . 12 14 14 9 Launcher 8 | . . 10 14 14 4 Slashing Weapon 1 | . . . . . 3 Naked Turns 76 | . 60 16 . . . Heaviest Build 13 | . . 3 3 3 13 Greatest Support 14 | 3 3 9 9 3 14 Greatest Overweight (x) 1 | . . . . . 1 Average Overweight (x) . | . . . . . . Largest Inventory Capacity 5 | 5 5 5 5 5 5 Average Capacity 5 | 5 5 5 5 5 5 Most Carried 5 | 1 5 5 5 5 5 Average Carried 4 | . 2 4 4 5 4 Final Capacity 5 | 5 5 5 5 5 5 Final Carried 5 | 1 5 5 5 5 4 Class Distribution -------------------- 100% | Mutant Dominant Class ---------------- Mutant | -10/Materials Mutant | -10/Mines Mutant | -10/Exiles Mutant | -9/Mines Mutant | -8/Materials Resources | -11 -10 -10 -10 -9 -8 ----------- Run | Yrd Mat Min Exi Min Mat Matter Collected 330 | 51 149 . . . 130 Remotely . | . . . . . . Salvage Created 30 | . . . . . 30 Parts 10 | . . . . . 10 Haulers Intercepted . | . . . . . . Recyclers Shooed . | . . . . . . Parts Field Recycled . | . . . . . . Retrieved Matter . | . . . . . . Parts Self-Destructed . | . . . . . . Prevented . | . . . . . . Kills | -11 -10 -10 -10 -9 -8 ------- Run | Yrd Mat Min Exi Min Mat Combat Hostiles Destroyed 1 | . . . . . 1 Melee 1 | . . . . . 1 Classes Destroyed 3 | . . . . . 3 Builder 1 | . . . . . 1 Operator 1 | . . . . . 1 Swarmer 1 | . . . . . 1 Best Kill Streak 2 | . . . . . 2 Combat Bots Only 1 | . . . . . 1 Max Kills in Single Turn 2 | . . . . . 2 Gunslinging . | . . . . . . Exploded . | . . . . . . Melee 1 | . . . . . 1 Uniques/NPCs Destroyed . | . . . . . . Combat | -11 -10 -10 -10 -9 -8 -------- Run | Yrd Mat Min Exi Min Mat Hostile Shots Fired 102 | . 1 . . 2 99 Missed 33 | . 1 . . . 32 Damage Taken 1283 | . . . . 28 1255 Core 574 | . . . . 11 563 Absorbed by Shields 28 | . . . . . 28 Core Remaining (%) 97 | 100 . . . 95 . Volleys Fired 3 | . . . . . 3 Largest 1 | . . . . . 1 Hottest 30 | . . . . . 30 Shots Fired 3 | . . . . . 3 Gun . | . . . . . . Cannon . | . . . . . . Launcher 3 | . . . . . 3 Special . | . . . . . . Kinetic . | . . . . . . Thermal . | . . . . . . Explosive 3 | . . . . . 3 Electromagnetic . | . . . . . . Robot Hit Streak . | . . . . . . Robot Miss Streak . | . . . . . . Penetration Max . | . . . . . . Secondary Targets . | . . . . . . Shots Hit Robots 1 | . . . . . 1 Core Hits 4 | . . . . . 4 Critical Kills . | . . . . . . Critical Parts Destroyed . | . . . . . . Critical Strikes . | . . . . . . Melee Attacks 2 | . . . . . 2 Impact . | . . . . . . Slashing 2 | . . . . . 2 Piercing . | . . . . . . Sneak Attacks . | . . . . . . Combat Hostiles . | . . . . . . Follow-up Attacks . | . . . . . . Damage Inflicted 189 | . . . . . 189 Guns . | . . . . . . Cannons . | . . . . . . Explosions 156 | . . . . . 156 Melee 33 | . . . . . 33 Ramming . | . . . . . . Kinetic . | . . . . . . Thermal . | . . . . . . Explosive 156 | . . . . . 156 Electromagnetic . | . . . . . . Impact . | . . . . . . Slashing 33 | . . . . . 33 Piercing . | . . . . . . Highest Corruption 9 | . . . . . 9 Average Corruption 9 | . . . . . 9 Corruption Purged . | . . . . . . Corruption Blocked . | . . . . . . Effects 2 | . . . . . 2 Message Errors 1 | . . . . . 1 Energy Discharges 1 | . . . . . 1 Overload Shots . | . . . . . . Overflow Damage 20 | . . . . . 20 Projectiles . | . . . . . . Explosions 20 | . . . . . 20 Melee . | . . . . . . Knockbacks . | . . . . . . Impact . | . . . . . . Kinetic . | . . . . . . Secondary . | . . . . . . Self-Inflicted Damage . | . . . . . . Shots . | . . . . . . Rammed . | . . . . . . Targets Rammed . | . . . . . . Kicked . | . . . . . . Crushed . | . . . . . . Highest Temperature 1 | . . . . . 1 Average Temperature 1 | . . . . . 1 Received Heat Transfer 273 | . . . . 15 258 Siege Activations . | . . . . . . Robots Corrupted . | . . . . . . Combat Hostiles . | . . . . . . Parts Fried . | . . . . . . Impact Corruptions . | . . . . . . Robots Melted . | . . . . . . Combat Hostiles . | . . . . . . Parts Melted . | . . . . . . Heat Transferred . | . . . . . . Parts Sabotaged . | . . . . . . Parts Stolen . | . . . . . . Parts Stripped . | . . . . . . Power Chain Reactions . | . . . . . . Alert | -11 -10 -10 -10 -9 -8 ------- Run | Yrd Mat Min Exi Min Mat Peak Influence 407 | . 60 23 . 45 407 Initial 23 | . . 23 . . 17 Average 104 | . 20 23 . 32 204 Maximum Alert Level 2 | . . . . . 2 Low Security (%) 81 | 100 100 100 . 100 58 Level 1 18 | . . . . . 40 Level 2 . | . . . . . . Level 3 . | . . . . . . Level 4 . | . . . . . . Level 5 . | . . . . . . High Security . | . . . . . . Max Security . | . . . . . . Squads Dispatched 4 | . . . . . 4 Investigation 2 | . . . . . 2 Extermination . | . . . . . . Reinforcement 2 | . . . . . 2 Assault . | . . . . . . Garrison . | . . . . . . Intercept . | . . . . . . Searches Triggered . | . . . . . . Construction Impeded . | . . . . . . Haulers Reinforced . | . . . . . . Active Scanning Responses . | . . . . . . Cargo Convoy Interrupts . | . . . . . . Stealth | -11 -10 -10 -10 -9 -8 --------- Run | Yrd Mat Min Exi Min Mat Distress Signals 3 | . 1 . . . 2 Communications Jammed . | . . . . . . Distress Signals . | . . . . . . Times Spotted 40 | . 4 . . 2 34 Peak Tracking Total 18 | . 4 . . 2 18 Tactical Retreats 6 | . 1 . . 1 4 Traps | -11 -10 -10 -10 -9 -8 ------- Run | Yrd Mat Min Exi Min Mat Traps Triggered . | . . . . . . Indirectly . | . . . . . . Trap Hack Attempts . | . . . . . . Triggered . | . . . . . . Disarmed . | . . . . . . Reprogrammed . | . . . . . . Reused . | . . . . . . Traps Extracted . | . . . . . . Installed . | . . . . . . Triggered . | . . . . . . Most Traps Carried 2 | . . 2 2 1 1 Machines | -11 -10 -10 -10 -9 -8 ---------- Run | Yrd Mat Min Exi Min Mat Machines Disabled 4 | . . . . . 4 Max in Single Turn 3 | . . . . . 3 Machines Repaired . | . . . . . . Machines Dismantled . | . . . . . . Machines Sabotaged . | . . . . . . Overloaded Fab Kills . | . . . . . . Hacking | -11 -10 -10 -10 -9 -8 --------- Run | Yrd Mat Min Exi Min Mat Machines Accessed 5 | . . . 2 . 3 Terminals 3 | . . . . . 3 Fabricators . | . . . . . . Repair Stations . | . . . . . . Recycling Units . | . . . . . . Scanalyzers . | . . . . . . Garrison Access . | . . . . . . Total Hacks 18 | . . . 5 . 13 Successful 10 | . . . 5 . 5 Failed 8 | . . . . . 8 Catastrophic 1 | . . . . . 1 Database Lockouts . | . . . . . . Manual 11 | . . . 1 . 10 Terminals 13 | . . . . . 13 Fabricators . | . . . . . . Repair Stations . | . . . . . . Recycling Units . | . . . . . . Scanalyzers . | . . . . . . Garrison Access . | . . . . . . Terminal Hacks 9 | . . . 5 . 4 Record 4 | . . . 4 . . Robot Analysis 1 | . . . . . 1 Prototype ID Bank 1 | . . . . . 1 Level Access Points 1 | . . . . . 1 Branch Access Points 1 | . . . . . 1 Derelict Proto ID Bank 1 | . . . 1 . . Fabricator Hacks . | . . . . . . Repair Station Hacks . | . . . . . . Recycling Unit Hacks . | . . . . . . Scanalyzer . | . . . . . . Garrison Access Hacks . | . . . . . . Unauthorized Hacks 1 | . . . . . 1 Terminals 1 | . . . . . 1 Botnet 1 | . . . . . 1 Fabricators . | . . . . . . Repair Stations . | . . . . . . Recycling Units . | . . . . . . Scanalyzers . | . . . . . . Garrison Access . | . . . . . . Data Cores Recovered . | . . . . . . Used . | . . . . . . Hacking Detections 2 | . . . . . 2 Full Trace Events 2 | . . . . . 2 Feedback Events . | . . . . . . Feedback Blocked . | . . . . . . Robot Schematics Acquired . | . . . . . . Robots Built . | . . . . . . Authchips . | . . . . . . Time . | . . . . . . Total Robot Build Rating . | . . . . . . Part Schematics Acquired . | . . . . . . Parts Built . | . . . . . . Authchips . | . . . . . . Time . | . . . . . . Total Part Build Rating . | . . . . . . Parts Repaired . | . . . . . . Time . | . . . . . . Parts Recycled . | . . . . . . Recycled Matter . | . . . . . . Retrieved Matter . | . . . . . . Retrieved Components . | . . . . . . Parts Scanalyzed . | . . . . . . Part Schematics Acquired . | . . . . . . Parts Damaged . | . . . . . . Bothacking | -11 -10 -10 -10 -9 -8 ------------ Run | Yrd Mat Min Exi Min Mat Used RIF Installer . | . . . . . . Robots Hacked . | . . . . . . Non-combat . | . . . . . . Combat . | . . . . . . Robot Hacks Applied . | . . . . . . Relay Couplers Released . | . . . . . . Fabnet Peak Effective % . | . . . . . . Robots Rewired . | . . . . . . Allies Hacked . | . . . . . . Hacks Repelled . | . . . . . . Allies | -11 -10 -10 -10 -9 -8 -------- Run | Yrd Mat Min Exi Min Mat Total Allies . | . . . . . . Largest Group . | . . . . . . Highest-Rated Group . | . . . . . . Highest-Rated Ally . | . . . . . . Total Orders . | . . . . . . Ally Attacks . | . . . . . . Total Damage . | . . . . . . Kills . | . . . . . . Allies Corrupted . | . . . . . . Allies Melted . | . . . . . . Intel | -11 -10 -10 -10 -9 -8 ------- Run | Yrd Mat Min Exi Min Mat Robot Analysis Total 1 | . . . . . 1 Derelict Logs Recovered . | . . . . . . Drone Launches . | . . . . . . Drone Recoveries . | . . . . . . Exploration | -11 -10 -10 -10 -9 -8 ------------- Run | Yrd Mat Min Exi Min Mat Turns Passed 495 | 12 60 78 108 64 173 Spaces Moved 865 | 22 111 132 207 127 266 Core 774 | 22 111 132 207 127 175 Treads . | . . . . . . Legs . | . . . . . . Wheels . | . . . . . . Hover . | . . . . . . Flight 91 | . . . . . 91 Fastest Speed 37 | 50 50 50 50 50 37 Average Speed 49 | 50 50 50 50 50 47 Slowest Speed 100 | 50 50 50 50 50 100 Overloaded Moves . | . . . . . . Propulsion Burnouts . | . . . . . . Robots Hopped 1 | . . . . . 1 Cave-ins Triggered 1 | . . . . . 1 Exploration Rate (%) 36 | 3 35 38 58 38 44 Regions Visited 5 Branch Regions 3 Pre-discovered Areas 1 | . . . 1 . . Known Exits Taken . | . . . . . . Unknown Exits Taken 5 | 1 1 1 1 1 . Scrap Searched 1 | . . . . 1 . Spaces Dug 5 | . . . . . 5 Terrain Destroyed 39 | . . . . . 39 Melee 1 | . . . . . 1 Projectile . | . . . . . . AOE 38 | . . . . . 38 Terrain Rammed . | . . . . . . Walls Destroyed . | . . . . . . Machines Disabled . | . . . . . . Actions | -11 -10 -10 -10 -9 -8 --------- Run | Yrd Mat Min Exi Min Mat Total 918 | 22 114 143 211 126 302 Wait 27 | . . 8 1 . 18 Move 858 | 21 110 131 206 126 264 Hop 1 | . . . . . 1 Pick Up 9 | 1 4 2 1 . 1 Fast Attach 9 | . . . 1 . 8 Attach 4 | . . 2 . . 2 Detach 1 | . . . . . 1 Swap . | . . . . . . Drop 4 | . . . 2 . 2 Fire 3 | . . . . . 3 Melee 2 | . . . . . 2 Ram . | . . . . . . Kick . | . . . . . . Crush . | . . . . . . Escape Stasis . | . . . . . . Rewire . | . . . . . . Trap . | . . . . . . Miscellaneous . | . . . . . . Route ------- -11/Scrapyard -10/Materials -10/Mines (discovered 2 exits: [*Mat] / *Exi) -10/Exiles -9/Mines -8/Materials (discovered 3 exits: *Fac x3) History --------- Turn | Location | Event 5 | -11/Scrapyard | Discovered new exit (range 15) 13 | -11/Scrapyard | Entered Materials 63 | -10/Materials | Discovered new exit (range 16) 73 | -10/Materials | Entered Mines 78 | -10/Mines | Discovered new exit (range 9) 88 | -10/Mines | Found a hidden stash of uninstalled traps 144 | -10/Mines | Met a Derelict bent on vengeance 149 | -10/Mines | Deemed a non-threat by the Exiles lab entrance 149 | -10/Mines | Discovered new exit (range 5) 151 | -10/Mines | Entered Exiles 164 | -10/Exiles | Met 8R-AWN 173 | -10/Exiles | Met EX-HEX 186 | -10/Exiles | Met EX-BIN 192 | -10/Exiles | Aligned with FarCom system 192 | -10/Exiles | Given EX-Vault access code 204 | -10/Exiles | Opened EX-Vault 208 | -10/Exiles | Found Trap Reconfigurator 222 | -10/Exiles | Warned to stay clear of 0b10 Research branches 240 | -10/Exiles | Learned location of Zion (-7) 255 | -10/Exiles | Discovered new exit (range 10) 259 | -10/Exiles | Left Exiles lab with Trap Reconfigurator 259 | -10/Exiles | Entered Mines 303 | -9/Mines | Discovered new exit (range 14) 307 | -9/Mines | Build established: Mutant 323 | -9/Mines | Entered Materials 323 | -8/Materials | Evolved 4 slots: Propulsion x2, Utility x2 337 | -8/Materials | Identified exit to Factory 399 | -8/Materials | Crushed by falling debris 433 | -8/Materials | Lost 4 parts (1p2u1w) 487 | -8/Materials | Core integrity fell below 50% 495 | -8/Materials | Core integrity fell below 20% 496 | -8/Materials | Destroyed by H-61 Shepherd with Heavy Assault Cannon Last Messages --------------- changes necessary to break them free of the relay network could only have been designed by an extremely intelligent system. >>Prototypes Downloading prototype IDs... Hvy. Ion Engine Imp. Cesium-ion Thruster 00452_ ALERT: Suspicious activity at Terminal M001. Dispatching Investigation squad. 00457_ Acquired 48 matter. 00466_ YB>4D6#QBNZ/&EELVGL0 MJ1EKODSTS6X 00470_ W-25 Informer sends out distress signal. 00476_ K-01 Serf collects debris. 00483_ Lgt. Armor Plating destroyed. 00485_ Flight Unit destroyed. 00488_ Scythe destroyed. 00488_ Critical hit (Blast). 00490_ Acquired Armor Integrity Analyzer. 00492_ Slug penetrates Wall. 00494_ Knocked back. Map ----- +----------------------------------------------------+ | | | | | | | | | | | | | | | | | | | | | | | | | | | | | | | | | | | | | ?????????????????????????????????????????????? | | ?????????????????????????????????????????????? | | ?????????????????????????????????????????????? | | ?????????????????????????????????????????????? | | ??????????????????#######################????? | | ??????????????????# ###??? | | ??????????????????#%